[Event "*** Titled Tuesday Blitz"]
[Site "Chess.com"]
[Date "2020.10.27"]
[Round "9"]
[White "oogee"]
[Black "AsaHoffmann"]
[Result "1-0"]
[WhiteElo "2222"]
[BlackElo "2343"]
[TimeControl "180+1"]
[EndTime "11:44:53 PDT"]
[Termination "oogee won by checkmate"]

1. d4 {[%clk 0:02:48.3]} 1... Nf6 {[%clk 0:02:58.9]} 2. c4 {[%clk 0:02:46.5]}
2... c5 {[%clk 0:02:58.4]} 3. d5 {[%clk 0:02:46.2]} 3... e5 {[%clk 0:02:58]} 4.
Nc3 {[%clk 0:02:43.8]} 4... d6 {[%clk 0:02:57.7]} 5. e4 {[%clk 0:02:43.8]} 5...
Be7 {[%clk 0:02:57.3]} 6. g3 {[%clk 0:02:42.3]} 6... O-O {[%clk 0:02:55.9]} 7.
Bg2 {[%clk 0:02:42.5]} 7... Na6 {[%clk 0:02:54.7]} 8. h3 {[%clk 0:02:41.9]} 8...
Bd7 {[%clk 0:02:50.9]} 9. Nge2 {[%clk 0:02:40.9]} 9... Ne8 {[%clk 0:02:50.6]}
10. O-O {[%clk 0:02:35.7]} 10... Nec7 {[%clk 0:02:50]} 11. a4 {[%clk 0:02:22.4]}
11... Nb4 {[%clk 0:02:49.2]} 12. Be3 {[%clk 0:02:19.9]} 12... b6 {[%clk
0:02:47.8]} 13. Qd2 {[%clk 0:02:19.3]} 13... a6 {[%clk 0:02:47]} 14. f4 {[%clk
0:02:18.8]} 14... Bf6 {[%clk 0:02:46.9]} 15. f5 {[%clk 0:02:16.2]} 15... Qe7
{[%clk 0:02:46.7]} 16. Kh2 {[%clk 0:02:05.9]} 16... h6 {[%clk 0:02:46.5]} 17.
Ng1 {[%clk 0:02:04.7]} 17... b5 {[%clk 0:02:45.9]} 18. b3 {[%clk 0:02:02.3]}
18... bxc4 {[%clk 0:02:45.4]} 19. bxc4 {[%clk 0:02:02.5]} 19... Bg5 {[%clk
0:02:45.3]} 20. Rac1 {[%clk 0:01:55.6]} 20... Bxe3 {[%clk 0:02:43.7]} 21. Qxe3
{[%clk 0:01:55.8]} 21... Qg5 {[%clk 0:02:41.6]} 22. Qe2 {[%clk 0:01:53.9]} 22...
Rab8 {[%clk 0:02:36.1]} 23. Nf3 {[%clk 0:01:51.8]} 23... Qe7 {[%clk 0:02:34.5]}
24. g4 {[%clk 0:01:51.5]} 24... f6 {[%clk 0:02:34.1]} 25. h4 {[%clk 0:01:50.7]}
25... Be8 {[%clk 0:02:28.2]} 26. Rg1 {[%clk 0:01:49.5]} 26... Bf7 {[%clk
0:02:21.7]} 27. Bh3 {[%clk 0:01:28.8]} 27... Rb7 {[%clk 0:02:21]} 28. g5 {[%clk
0:01:22.8]} 28... hxg5 {[%clk 0:02:20.5]} 29. hxg5 {[%clk 0:01:22.9]} 29... Bh5
{[%clk 0:02:20]} 30. g6 {[%clk 0:01:23.3]} 30... Rfb8 {[%clk 0:02:14.6]} 31. Qf2
{[%clk 0:01:12.3]} 31... Nd3 {[%clk 0:02:04.6]} 32. Qh4 {[%clk 0:01:12.1]} 32...
Rb2+ {[%clk 0:02:03]} 33. Rg2 {[%clk 0:01:03.1]} 33... Nf4 {[%clk 0:02:01.4]}
34. Rg1 {[%clk 0:00:54.8]} 34... Kf8 {[%clk 0:01:57.6]} 35. Bg4 {[%clk
0:00:53.9]} 35... Ke8 {[%clk 0:01:47.7]} 36. Bxh5 {[%clk 0:00:52.7]} 36... Nxg2
{[%clk 0:01:41.9]} 37. Rxg2 {[%clk 0:00:51.8]} 37... Rxg2+ {[%clk 0:01:40.4]}
38. Kxg2 {[%clk 0:00:51.8]} 38... Rb3 {[%clk 0:01:39.2]} 39. Qe1 {[%clk
0:00:39.7]} 39... Na8 {[%clk 0:01:33.1]} 40. Qc1 {[%clk 0:00:33]} 40... Qb7
{[%clk 0:01:32.2]} 41. Nd2 {[%clk 0:00:30.5]} 41... Rb2 {[%clk 0:01:31.3]} 42.
Nb5 {[%clk 0:00:25.3]} 42... Rxd2+ {[%clk 0:01:29.8]} 43. Qxd2 {[%clk
0:00:24.5]} 43... axb5 {[%clk 0:01:29.9]} 44. Qh6 {[%clk 0:00:19.5]} 44... gxh6
{[%clk 0:01:19.8]} 45. g7+ {[%clk 0:00:19.4]} 45... Kd8 {[%clk 0:01:20]} 46.
g8=Q+ {[%clk 0:00:18.8]} 46... Kc7 {[%clk 0:01:20.1]} 47. cxb5 {[%clk
0:00:16.8]} 47... Kb6 {[%clk 0:01:17.9]} 48. Qd8+ {[%clk 0:00:16.2]} 48... Ka7
{[%clk 0:01:16.7]} 49. Qxd6 {[%clk 0:00:15.7]} 49... Qb6 {[%clk 0:01:14.2]} 50.
Qd7+ {[%clk 0:00:13.5]} 50... Nc7 {[%clk 0:01:13.9]} 51. d6 {[%clk 0:00:13.1]}
51... c4 {[%clk 0:01:13]} 52. dxc7 {[%clk 0:00:13]} 52... Kb7 {[%clk 0:01:12.9]}
53. c8=Q# {[%clk 0:00:12.6]} 1-0

[Event "*** Titled Tuesday Blitz"]
[Site "Chess.com"]
[Date "2020.10.27"]
[Round "9"]
[White "Witik"]
[Black "Lion-Al-Messi"]
[Result "1-0"]
[WhiteElo "2707"]
[BlackElo "2534"]
[TimeControl "180+1"]
[EndTime "11:44:54 PDT"]
[Termination "Witik won by resignation"]

1. d4 {[%clk 0:03:00.9]} 1... d5 {[%clk 0:02:30.7]} 2. Bf4 {[%clk 0:03:00.3]}
2... Nf6 {[%clk 0:02:26.7]} 3. e3 {[%clk 0:03:00.2]} 3... c5 {[%clk 0:02:27]} 4.
c3 {[%clk 0:03:00.2]} 4... Nc6 {[%clk 0:02:27.2]} 5. Nd2 {[%clk 0:03:00.2]} 5...
Qb6 {[%clk 0:02:27.3]} 6. Qb3 {[%clk 0:02:59.6]} 6... Qxb3 {[%clk 0:02:26.9]} 7.
axb3 {[%clk 0:02:59.4]} 7... cxd4 {[%clk 0:02:24.9]} 8. exd4 {[%clk 0:02:58.5]}
8... a6 {[%clk 0:02:25]} 9. b4 {[%clk 0:02:58.2]} 9... Nh5 {[%clk 0:02:16.7]}
10. Be3 {[%clk 0:02:53.4]} 10... e5 {[%clk 0:02:08.4]} 11. dxe5 {[%clk 0:02:37]}
11... Nxe5 {[%clk 0:02:09.3]} 12. Ngf3 {[%clk 0:02:29.9]} 12... Ng4 {[%clk
0:02:06.1]} 13. Bd4 {[%clk 0:02:26.7]} 13... Be7 {[%clk 0:01:52.2]} 14. h3
{[%clk 0:02:21.9]} 14... Ngf6 {[%clk 0:01:52.2]} 15. g3 {[%clk 0:02:19]} 15...
O-O {[%clk 0:01:49.8]} 16. Bg2 {[%clk 0:02:16.9]} 16... Bd7 {[%clk 0:01:49.9]}
17. O-O {[%clk 0:02:16.6]} 17... Ne4 {[%clk 0:01:44]} 18. Rfe1 {[%clk
0:02:14.1]} 18... f5 {[%clk 0:01:42.3]} 19. Ne5 {[%clk 0:02:10.2]} 19... Bb5
{[%clk 0:01:33.9]} 20. c4 {[%clk 0:01:55.2]} 20... Bxb4 {[%clk 0:01:05.5]} 21.
Nxe4 {[%clk 0:01:33.9]} 21... Bxe1 {[%clk 0:00:41.4]} 22. Nd6 {[%clk 0:01:17.6]}
22... Nf6 {[%clk 0:00:03.7]} 23. Rxe1 {[%clk 0:01:07.1]} 23... dxc4 {[%clk
0:00:03.8]} 24. Nxb7 {[%clk 0:00:58.7]} 24... Rab8 {[%clk 0:00:03.9]} 25. Bc3
{[%clk 0:00:51.8]} 25... Rfe8 {[%clk 0:00:03.5]} 26. Nd6 {[%clk 0:00:50.9]}
26... Re7 {[%clk 0:00:03.9]} 27. Nxf5 {[%clk 0:00:50.7]} 27... Re6 {[%clk
0:00:03.6]} 28. f4 {[%clk 0:00:46.5]} 28... Nd7 {[%clk 0:00:03]} 29. Bd5 {[%clk
0:00:45.6]} 29... Re8 {[%clk 0:00:02.1]} 1-0

[Event "*** Titled Tuesday Blitz"]
[Site "Chess.com"]
[Date "2020.10.27"]
[Round "9"]
[White "Zhani-Z"]
[Black "Chessalary"]
[Result "1-0"]
[WhiteElo "2532"]
[BlackElo "2397"]
[TimeControl "180+1"]
[EndTime "11:44:57 PDT"]
[Termination "Zhani-Z won by resignation"]

1. e4 {[%clk 0:03:00.9]} 1... c5 {[%clk 0:02:59.1]} 2. Nf3 {[%clk 0:03:00.2]}
2... d6 {[%clk 0:02:59.4]} 3. Bb5+ {[%clk 0:02:51.7]} 3... Bd7 {[%clk
0:02:58.2]} 4. Bxd7+ {[%clk 0:02:50.2]} 4... Qxd7 {[%clk 0:02:59.1]} 5. c4
{[%clk 0:02:48]} 5... e5 {[%clk 0:02:58]} 6. Nc3 {[%clk 0:02:38.9]} 6... Ne7
{[%clk 0:02:57.8]} 7. O-O {[%clk 0:02:37.7]} 7... g6 {[%clk 0:02:58.2]} 8. a3
{[%clk 0:02:35.9]} 8... Bg7 {[%clk 0:02:57.5]} 9. b4 {[%clk 0:02:35.5]} 9... O-O
{[%clk 0:02:57.4]} 10. Rb1 {[%clk 0:02:33.7]} 10... Nbc6 {[%clk 0:02:55.2]} 11.
Nd5 {[%clk 0:02:33.3]} 11... Nxd5 {[%clk 0:02:53.5]} 12. cxd5 {[%clk 0:02:32.6]}
12... Nd4 {[%clk 0:02:53.8]} 13. bxc5 {[%clk 0:02:32.3]} 13... dxc5 {[%clk
0:02:54.7]} 14. d3 {[%clk 0:02:31.6]} 14... f5 {[%clk 0:02:52.9]} 15. Nd2 {[%clk
0:02:02.4]} 15... f4 {[%clk 0:02:40.8]} 16. f3 {[%clk 0:02:00.6]} 16... g5
{[%clk 0:02:39.1]} 17. a4 {[%clk 0:02:00]} 17... h5 {[%clk 0:02:37.8]} 18. Nc4
{[%clk 0:01:52.6]} 18... g4 {[%clk 0:02:30.1]} 19. Bb2 {[%clk 0:01:52.1]} 19...
gxf3 {[%clk 0:02:28.3]} 20. gxf3 {[%clk 0:01:52.4]} 20... Rf6 {[%clk 0:02:14.5]}
21. Bxd4 {[%clk 0:01:44.1]} 21... Rg6+ {[%clk 0:02:09.6]} 22. Kh1 {[%clk
0:01:44.2]} 22... cxd4 {[%clk 0:02:09.8]} 23. Rg1 {[%clk 0:01:38.3]} 23... Rxg1+
{[%clk 0:01:49.4]} 24. Qxg1 {[%clk 0:01:36.8]} 24... Kh7 {[%clk 0:01:38.6]} 25.
Qg2 {[%clk 0:01:12.3]} 25... Rg8 {[%clk 0:01:18.7]} 26. Rg1 {[%clk 0:01:05.9]}
26... Qf7 {[%clk 0:01:16.1]} 27. Nd6 {[%clk 0:00:47.7]} 27... Qf6 {[%clk
0:01:15]} 28. Nf5 {[%clk 0:00:40.1]} 28... b6 {[%clk 0:00:46.7]} 29. Qh3 {[%clk
0:00:38.2]} 29... Bh6 {[%clk 0:00:44.5]} 30. Rxg8 {[%clk 0:00:33.8]} 30... Kxg8
{[%clk 0:00:45.4]} 31. Qxh5 {[%clk 0:00:34.4]} 31... Qg5 {[%clk 0:00:26]} 32.
Nxh6+ {[%clk 0:00:33.4]} 1-0

[Event "*** Titled Tuesday Blitz"]
[Site "Chess.com"]
[Date "2020.10.27"]
[Round "9"]
[White "WhiteKnight2612"]
[Black "kingofthenil"]
[Result "1-0"]
[WhiteElo "2592"]
[BlackElo "2481"]
[TimeControl "180+1"]
[EndTime "11:44:59 PDT"]
[Termination "WhiteKnight2612 won on time"]

1. Nf3 {[%clk 0:02:59.5]} 1... Nf6 {[%clk 0:02:59.8]} 2. g3 {[%clk 0:03:00.4]}
2... d5 {[%clk 0:02:59.4]} 3. Bg2 {[%clk 0:03:00.8]} 3... e6 {[%clk 0:02:59.5]}
4. O-O {[%clk 0:03:00.8]} 4... Be7 {[%clk 0:03:00.4]} 5. d4 {[%clk 0:03:00.8]}
5... O-O {[%clk 0:03:01.3]} 6. c4 {[%clk 0:02:59.8]} 6... c6 {[%clk 0:03:01.1]}
7. Nc3 {[%clk 0:02:59.7]} 7... Nbd7 {[%clk 0:02:58.9]} 8. b3 {[%clk 0:02:53.6]}
8... b6 {[%clk 0:02:56.3]} 9. Bb2 {[%clk 0:02:53.4]} 9... Ba6 {[%clk 0:02:48.6]}
10. Nd2 {[%clk 0:02:39.6]} 10... c5 {[%clk 0:02:40.5]} 11. e3 {[%clk 0:02:31.2]}
11... cxd4 {[%clk 0:02:34.9]} 12. exd4 {[%clk 0:02:32.1]} 12... Rc8 {[%clk
0:02:35]} 13. Qe2 {[%clk 0:02:24.3]} 13... Qc7 {[%clk 0:02:13.2]} 14. Nb5 {[%clk
0:01:12.7]} 14... Bxb5 {[%clk 0:02:05.2]} 15. cxb5 {[%clk 0:01:13.6]} 15... Qc2
{[%clk 0:02:06]} 16. Rab1 {[%clk 0:01:10.2]} 16... Bb4 {[%clk 0:02:04.9]} 17.
Rfd1 {[%clk 0:01:10.1]} 17... Bc3 {[%clk 0:01:24.6]} 18. Bxc3 {[%clk 0:00:56.1]}
18... Rxc3 {[%clk 0:01:22.6]} 19. a4 {[%clk 0:00:54.7]} 19... Rfc8 {[%clk
0:01:16.8]} 20. Qe1 {[%clk 0:00:53.2]} 20... Qa2 {[%clk 0:00:45.1]} 21. Nf1
{[%clk 0:00:48.2]} 21... Rxb3 {[%clk 0:00:31.8]} 22. Ra1 {[%clk 0:00:43.7]}
22... Qb2 {[%clk 0:00:19.7]} 23. Rdb1 {[%clk 0:00:41.8]} 23... Qxd4 {[%clk
0:00:02.7]} 24. Rxb3 {[%clk 0:00:41.3]} 24... Rc2 {[%clk 0:00:02.6]} 25. Rd1
{[%clk 0:00:40.8]} 25... Qc5 {[%clk 0:00:02.5]} 26. a5 {[%clk 0:00:37.5]} 26...
h5 {[%clk 0:00:01.8]} 27. axb6 {[%clk 0:00:36.7]} 27... axb6 {[%clk 0:00:02.7]}
28. h3 {[%clk 0:00:37]} 28... e5 {[%clk 0:00:01.5]} 29. Ne3 {[%clk 0:00:36.7]}
1-0

[Event "*** Titled Tuesday Blitz"]
[Site "Chess.com"]
[Date "2020.10.27"]
[Round "9"]
[White "Yashasd1995"]
[Black "Kobalia"]
[Result "0-1"]
[WhiteElo "2551"]
[BlackElo "2739"]
[TimeControl "180+1"]
[EndTime "11:45:01 PDT"]
[Termination "Kobalia won by checkmate"]

1. b3 {[%clk 0:03:00.9]} 1... e5 {[%clk 0:02:58.9]} 2. Bb2 {[%clk 0:03:01]} 2...
Nc6 {[%clk 0:02:58.7]} 3. e3 {[%clk 0:03:00]} 3... g6 {[%clk 0:02:58.2]} 4. Bb5
{[%clk 0:03:00]} 4... Bg7 {[%clk 0:02:57.2]} 5. Nf3 {[%clk 0:03:00.2]} 5... Nge7
{[%clk 0:02:50.8]} 6. d4 {[%clk 0:02:59.8]} 6... exd4 {[%clk 0:02:50.6]} 7. Nxd4
{[%clk 0:02:54.8]} 7... Nxd4 {[%clk 0:02:50.3]} 8. Bxd4 {[%clk 0:02:55.7]} 8...
O-O {[%clk 0:02:49.4]} 9. Bxg7 {[%clk 0:02:54.8]} 9... Kxg7 {[%clk 0:02:49.2]}
10. Qd4+ {[%clk 0:02:52.2]} 10... Kg8 {[%clk 0:02:49.3]} 11. Bd3 {[%clk
0:02:52.2]} 11... d5 {[%clk 0:02:48.6]} 12. Nd2 {[%clk 0:02:49]} 12... Nf5
{[%clk 0:02:39.7]} 13. Qb2 {[%clk 0:02:47.8]} 13... Qg5 {[%clk 0:02:36.4]} 14.
O-O {[%clk 0:01:32.7]} 14... Nh4 {[%clk 0:02:35.6]} 15. g3 {[%clk 0:01:32.8]}
15... Bh3 {[%clk 0:02:32.3]} 16. f4 {[%clk 0:01:32]} 16... Qh5 {[%clk
0:02:29.7]} 17. Rf2 {[%clk 0:01:29.6]} 17... Nf5 {[%clk 0:02:29.8]} 18. e4
{[%clk 0:01:15.2]} 18... Ne3 {[%clk 0:02:18]} 19. exd5 {[%clk 0:01:07]} 19...
Nd1 {[%clk 0:01:10.7]} 20. Be2 {[%clk 0:00:21.6]} 20... Qxe2 {[%clk 0:01:05]}
21. Rxe2 {[%clk 0:00:21.9]} 21... Nxb2 {[%clk 0:01:05.7]} 22. Rb1 {[%clk
0:00:22.2]} 22... Rfe8 {[%clk 0:01:06]} 23. Rxe8+ {[%clk 0:00:20.3]} 23... Rxe8
{[%clk 0:01:06.9]} 24. Kf2 {[%clk 0:00:20.2]} 24... Rd8 {[%clk 0:00:53.4]} 25.
Rxb2 {[%clk 0:00:17.8]} 25... Rxd5 {[%clk 0:00:53.5]} 26. c4 {[%clk 0:00:17.9]}
26... Rd3 {[%clk 0:00:53.4]} 27. Ne4 {[%clk 0:00:17.6]} 27... b6 {[%clk
0:00:40.4]} 28. Rd2 {[%clk 0:00:15.9]} 28... Rxd2+ {[%clk 0:00:40.5]} 29. Nxd2
{[%clk 0:00:16.8]} 29... Kf8 {[%clk 0:00:37.9]} 30. Ke3 {[%clk 0:00:16.1]} 30...
Ke7 {[%clk 0:00:38.1]} 31. Kd4 {[%clk 0:00:16.1]} 31... c5+ {[%clk 0:00:36]} 32.
Kd5 {[%clk 0:00:13.8]} 32... Bg2+ {[%clk 0:00:35.1]} 33. Ke5 {[%clk 0:00:07]}
33... f6# {[%clk 0:00:34.9]} 0-1

[Event "*** Titled Tuesday Blitz"]
[Site "Chess.com"]
[Date "2020.10.27"]
[Round "9"]
[White "maciek_92"]
[Black "FMJoseHerrera"]
[Result "1-0"]
[WhiteElo "2720"]
[BlackElo "2562"]
[TimeControl "180+1"]
[EndTime "11:45:01 PDT"]
[Termination "maciek_92 won on time"]

1. e4 {[%clk 0:03:00.9]} 1... c5 {[%clk 0:02:54.8]} 2. Nf3 {[%clk 0:03:01]} 2...
e6 {[%clk 0:02:48.5]} 3. d4 {[%clk 0:03:00.8]} 3... cxd4 {[%clk 0:02:48.9]} 4.
Nxd4 {[%clk 0:03:01.7]} 4... a6 {[%clk 0:02:49.3]} 5. Bd3 {[%clk 0:03:00.2]}
5... Qc7 {[%clk 0:02:49.6]} 6. O-O {[%clk 0:02:59.8]} 6... b6 {[%clk 0:02:47.5]}
7. c4 {[%clk 0:02:58.6]} 7... Bb7 {[%clk 0:02:47.5]} 8. Nc3 {[%clk 0:02:58.6]}
8... d6 {[%clk 0:02:47.2]} 9. a3 {[%clk 0:02:54.8]} 9... Nd7 {[%clk 0:02:47.2]}
10. Be3 {[%clk 0:02:53]} 10... Ngf6 {[%clk 0:02:46.5]} 11. Rc1 {[%clk
0:02:52.6]} 11... Be7 {[%clk 0:02:46]} 12. b4 {[%clk 0:02:47.2]} 12... Rc8
{[%clk 0:02:45]} 13. Kh1 {[%clk 0:02:44.3]} 13... h5 {[%clk 0:02:44.2]} 14. f4
{[%clk 0:02:41.6]} 14... h4 {[%clk 0:02:38.8]} 15. Nf3 {[%clk 0:02:35.4]} 15...
h3 {[%clk 0:02:37]} 16. g3 {[%clk 0:02:33.1]} 16... Qb8 {[%clk 0:02:36]} 17. Kg1
{[%clk 0:02:28.4]} 17... Qa8 {[%clk 0:02:31.1]} 18. Ng5 {[%clk 0:02:23.2]} 18...
Kf8 {[%clk 0:00:54.2]} 19. Qe2 {[%clk 0:02:12.9]} 19... d5 {[%clk 0:00:42.1]}
20. cxd5 {[%clk 0:02:09.1]} 20... exd5 {[%clk 0:00:41.6]} 21. e5 {[%clk
0:01:57.6]} 21... Nh5 {[%clk 0:00:38.8]} 22. Nxf7 {[%clk 0:01:51.1]} 22... Kxf7
{[%clk 0:00:31.5]} 23. e6+ {[%clk 0:01:39.2]} 23... Kf8 {[%clk 0:00:25.3]} 24.
exd7 {[%clk 0:01:36.6]} 24... Rd8 {[%clk 0:00:25.7]} 25. Bf5 {[%clk 0:01:36.7]}
25... Nxg3 {[%clk 0:00:21.2]} 26. hxg3 {[%clk 0:01:31]} 26... h2+ {[%clk
0:00:21.2]} 27. Kf2 {[%clk 0:01:31.5]} 27... Bf6 {[%clk 0:00:20.1]} 28. Nxd5
{[%clk 0:01:12.3]} 28... Bxd5 {[%clk 0:00:20.1]} 29. Rc8 {[%clk 0:01:12.4]}
29... Qb7 {[%clk 0:00:18.5]} 30. Bc5+ {[%clk 0:01:09.2]} 30... Kf7 {[%clk
0:00:16.6]} 31. Qg4 {[%clk 0:00:56.1]} 31... g5 {[%clk 0:00:15.2]} 32. fxg5
{[%clk 0:00:53.2]} 32... Be5 {[%clk 0:00:13.9]} 33. Rxd8 {[%clk 0:00:44.5]}
33... Rxd8 {[%clk 0:00:14.7]} 34. Qh5+ {[%clk 0:00:44.1]} 1-0

[Event "*** Titled Tuesday Blitz"]
[Site "Chess.com"]
[Date "2020.10.27"]
[Round "9"]
[White "Gabrielian_Artur"]
[Black "verdest"]
[Result "1-0"]
[WhiteElo "2783"]
[BlackElo "2623"]
[TimeControl "180+1"]
[EndTime "11:45:02 PDT"]
[Termination "Gabrielian_Artur won by resignation"]

1. d4 {[%clk 0:03:00.9]} 1... Nf6 {[%clk 0:02:59.2]} 2. c4 {[%clk 0:03:00.5]}
2... e6 {[%clk 0:02:58.2]} 3. Nc3 {[%clk 0:03:00.4]} 3... Bb4 {[%clk 0:02:57]}
4. e3 {[%clk 0:03:00.8]} 4... O-O {[%clk 0:02:55.3]} 5. Bd3 {[%clk 0:03:00.9]}
5... d5 {[%clk 0:02:52.7]} 6. Nf3 {[%clk 0:03:01.1]} 6... b6 {[%clk 0:02:49.1]}
7. O-O {[%clk 0:02:58.2]} 7... Bb7 {[%clk 0:02:48]} 8. cxd5 {[%clk 0:02:57.8]}
8... exd5 {[%clk 0:02:47.7]} 9. Ne5 {[%clk 0:02:56.3]} 9... Nbd7 {[%clk
0:02:41.8]} 10. f4 {[%clk 0:02:56.2]} 10... Re8 {[%clk 0:02:38.3]} 11. Bd2
{[%clk 0:02:54.2]} 11... c5 {[%clk 0:02:35.7]} 12. a3 {[%clk 0:02:53.1]} 12...
Bxc3 {[%clk 0:02:34.6]} 13. bxc3 {[%clk 0:02:53.2]} 13... Ne4 {[%clk 0:02:27.8]}
14. Bxe4 {[%clk 0:02:44.8]} 14... dxe4 {[%clk 0:02:28.7]} 15. Qb3 {[%clk
0:02:24.7]} 15... Nxe5 {[%clk 0:02:06.9]} 16. fxe5 {[%clk 0:02:24.2]} 16... Qe7
{[%clk 0:01:54.5]} 17. Rf4 {[%clk 0:02:17.2]} 17... Rac8 {[%clk 0:01:40.9]} 18.
Raf1 {[%clk 0:02:10.5]} 18... c4 {[%clk 0:01:36.9]} 19. Qd1 {[%clk 0:02:01.3]}
19... Bd5 {[%clk 0:01:34.9]} 20. Be1 {[%clk 0:01:38.1]} 20... Rc6 {[%clk
0:01:31.3]} 21. Bh4 {[%clk 0:01:33]} 21... Qxa3 {[%clk 0:01:25.3]} 22. Bf6
{[%clk 0:01:22.8]} 22... Kh8 {[%clk 0:01:10.1]} 23. Qh5 {[%clk 0:00:42.8]} 23...
Qf8 {[%clk 0:01:04.3]} 24. Rh4 {[%clk 0:00:41.6]} 24... Qg8 {[%clk 0:00:59.9]}
25. Rff4 {[%clk 0:00:40.4]} 25... Be6 {[%clk 0:00:23.7]} 26. d5 {[%clk 0:00:40]}
26... gxf6 {[%clk 0:00:15.3]} 27. dxe6 {[%clk 0:00:27.4]} 27... Rcxe6 {[%clk
0:00:11.9]} 28. Rfg4 {[%clk 0:00:27.2]} 1-0

[Event "*** Titled Tuesday Blitz"]
[Site "Chess.com"]
[Date "2020.10.27"]
[Round "9"]
[White "HouseOfDurin"]
[Black "LogoCzar"]
[Result "0-1"]
[WhiteElo "2185"]
[BlackElo "2379"]
[TimeControl "180+1"]
[EndTime "11:45:02 PDT"]
[Termination "LogoCzar won by resignation"]

1. d4 {[%clk 0:03:00.9]} 1... f5 {[%clk 0:02:59.4]} 2. Bg5 {[%clk 0:03:01]} 2...
h6 {[%clk 0:02:56]} 3. Bh4 {[%clk 0:03:00.9]} 3... g5 {[%clk 0:02:56.2]} 4. Bg3
{[%clk 0:03:00.2]} 4... Nf6 {[%clk 0:02:51.1]} 5. Be5 {[%clk 0:02:59]} 5... e6
{[%clk 0:02:49.9]} 6. e3 {[%clk 0:02:58.1]} 6... d6 {[%clk 0:02:50.1]} 7. Bxf6
{[%clk 0:02:55.5]} 7... Qxf6 {[%clk 0:02:50.4]} 8. Qh5+ {[%clk 0:02:56.1]} 8...
Qf7 {[%clk 0:02:49.8]} 9. Qxf7+ {[%clk 0:02:54.2]} 9... Kxf7 {[%clk 0:02:50.7]}
10. c4 {[%clk 0:02:53.2]} 10... Bg7 {[%clk 0:02:49.3]} 11. Nc3 {[%clk
0:02:53.4]} 11... c5 {[%clk 0:02:49]} 12. O-O-O {[%clk 0:02:52.8]} 12... Nc6
{[%clk 0:02:46]} 13. Nb5 {[%clk 0:02:49.6]} 13... cxd4 {[%clk 0:02:41.9]} 14.
Nxd6+ {[%clk 0:02:44]} 14... Ke7 {[%clk 0:02:41.4]} 15. Nxc8+ {[%clk 0:02:18.8]}
15... Raxc8 {[%clk 0:02:40.8]} 16. exd4 {[%clk 0:02:18.8]} 16... Nxd4 {[%clk
0:02:39.2]} 17. b3 {[%clk 0:02:18.6]} 17... b5 {[%clk 0:02:38.2]} 18. Ne2 {[%clk
0:02:08.6]} 18... Rhd8 {[%clk 0:02:34.5]} 19. Nxd4 {[%clk 0:02:05.9]} 19... Bxd4
{[%clk 0:02:28.6]} 20. f3 {[%clk 0:01:59.8]} 20... e5 {[%clk 0:02:25.7]} 21. Be2
{[%clk 0:01:53.1]} 21... Kf6 {[%clk 0:02:22.8]} 22. Kc2 {[%clk 0:01:45.8]} 22...
bxc4 {[%clk 0:02:22.9]} 23. Bxc4 {[%clk 0:01:44.8]} 23... e4 {[%clk 0:02:22.8]}
24. fxe4 {[%clk 0:01:33.4]} 24... fxe4 {[%clk 0:02:23.7]} 25. Rhf1+ {[%clk
0:01:33.1]} 25... Ke5 {[%clk 0:02:23.4]} 26. Rf7 {[%clk 0:01:24.3]} 26... Rf8
{[%clk 0:02:19.6]} 27. Rdf1 {[%clk 0:01:19.4]} 27... Rxf7 {[%clk 0:02:19]} 28.
Rxf7 {[%clk 0:01:20.3]} 28... Rc6 {[%clk 0:02:14]} 29. g3 {[%clk 0:01:07]} 29...
Bg1 {[%clk 0:02:11.6]} 30. h4 {[%clk 0:00:58]} 30... gxh4 {[%clk 0:02:09.6]} 31.
gxh4 {[%clk 0:00:58.9]} 31... Rd6 {[%clk 0:01:48.5]} 32. h5 {[%clk 0:00:37.1]}
32... e3 {[%clk 0:01:48.3]} 33. Rg7 {[%clk 0:00:33.1]} 33... Rd2+ {[%clk
0:01:44.8]} 34. Kc3 {[%clk 0:00:22.7]} 34... Bh2 {[%clk 0:01:37]} 35. Re7+
{[%clk 0:00:14.6]} 35... Kf4 {[%clk 0:01:36]} 36. Rf7+ {[%clk 0:00:12.5]} 36...
Ke4 {[%clk 0:01:33]} 37. Re7+ {[%clk 0:00:12.1]} 37... Be5+ {[%clk 0:01:32.6]}
38. Kb4 {[%clk 0:00:11.3]} 38... e2 {[%clk 0:01:27.2]} 39. Bxe2 {[%clk
0:00:05.9]} 39... Rxe2 {[%clk 0:01:27.5]} 40. Rxa7 {[%clk 0:00:05.3]} 40... Kd5
{[%clk 0:01:26.4]} 41. Ra5+ {[%clk 0:00:02.9]} 41... Kd4 {[%clk 0:01:23.3]} 42.
a4 {[%clk 0:00:03.1]} 42... Bd6+ {[%clk 0:01:21.1]} 43. Kb5 {[%clk 0:00:02.3]}
43... Re5+ {[%clk 0:01:19.1]} 44. Kc6 {[%clk 0:00:02.9]} 44... Rxa5 {[%clk
0:01:18.4]} 45. Kxd6 {[%clk 0:00:03.6]} 45... Kc3 {[%clk 0:01:17]} 46. b4 {[%clk
0:00:01.6]} 46... Kxb4 {[%clk 0:01:16.9]} 47. Ke6 {[%clk 0:00:02.5]} 47... Kxa4
{[%clk 0:01:16.5]} 48. Kf6 {[%clk 0:00:03.4]} 48... Rxh5 {[%clk 0:01:16.6]} 49.
Kg6 {[%clk 0:00:04.3]} 49... Rh1 {[%clk 0:01:16.1]} 50. Kg7 {[%clk 0:00:05.2]}
50... h5 {[%clk 0:01:16]} 51. Kg6 {[%clk 0:00:05.7]} 51... h4 {[%clk 0:01:16.9]}
0-1